bitfinex/quotes_SOLUSD_20241001
["timestamp","ask_amount","ask_price","bid_price","bid_amount"]
[1727792046633,6.5155,153.48,153.41,16.2952]
[1727792046949,6.5151,153.49,153.44,6.5171]
[1727792047152,1.30082158,153.48,153.44,6.5171]
[1727792047322,6.516,153.47,153.41,16.2952]
[1727792047520,6.5155,153.48,153.41,16.2952]
[1727792047726,6.5155,153.48,153.37,32.6001]
[1727792047727,7.81572158,153.5,153.44,6.5171]
[1727792048032,6.5151,153.49,153.43,22.8108]
[1727792048234,1.30082158,153.48,153.43,22.8108]
[1727792048423,6.5162,153.47,153.41,6.5183]
[1727792048639,1.30082158,153.46,153.41,6.5183]
[1727792048838,1.30082158,153.46,153.4,16.2971]
[1727792049037,1.30082158,153.49,153.4,22.8155]
[1727792049351,1.30082158,153.49,153.43,6.5176]
[1727792049352,6.5155,153.48,153.43,6.5176]
[1727792049552,1.30082158,153.47,153.43,6.5176]
[1727792049854,6.5147,153.5,153.44,1.30336706]
[1727792050159,1.30082158,153.49,153.45,16.2919]
[1727792050325,7.81592158,153.49,153.45,16.2919]
[1727792050643,1.30082158,153.5,153.47,6.5157]
[1727792050946,7.81582158,153.5,153.45,16.2919]
[1727792051148,6.5152,153.49,153.45,16.2919]
[1727792051445,1.30082158,153.5,153.45,22.8085]
[1727792051629,1.30082158,153.5,153.46,7.81915879]
[1727792052046,1.30082158,153.5,153.46,6.516]
[1727792052249,7.81552158,153.5,153.45,16.2919]
[1727792052447,7.81552158,153.5,153.45,22.8085]
[1727792052747,7.88742158,153.51,153.48,6.5153]
[1727792052921,6.5866,153.51,153.5,6.5146]
[1727792053121,6.5126,153.55,153.52,6.5137]
[1727792053122,6.4949,153.55,153.52,6.5137]
[1727792053326,6.4949,153.55,153.46,23.776884]
[1727792053327,7.79572158,153.55,153.51,16.2855]
[1727792053740,6.4949,153.55,153.52,1.30267403]
[1727792054049,6.4949,153.55,153.52,6.5134]
[1727792054228,6.4949,153.55,153.53,6.5133]
[1727792054625,6.4949,153.55,153.54,6.5129]
[1727792055029,6.513,153.54,153.48,6.5152]
[1727792055336,7.79572158,153.55,153.47,22.8043]
[1727792055337,7.81422158,153.53,153.47,22.8043]
[1727792055527,7.81422158,153.53,153.47,16.2888]
[1727792055737,6.5143,153.51,153.43,16.293]
[1727792055937,6.4949,153.55,153.39,63.96036746]
[1727792056148,1.30082158,153.54,153.5,6.5145]
[1727792056336,1.30082158,153.54,153.49,16.2876]
[1727792056652,1.30082158,153.54,153.49,22.8023]
[1727792056858,1.30082158,153.54,153.5,6.5145]
[1727792057354,1.30082158,153.54,153.49,16.2876]
[1727792057528,7.81382158,153.54,153.49,16.2876]
[1727792057736,1.30082158,153.54,153.49,22.8026]
[1727792058430,6.4949,153.55,153.53,6.5133]
[1727792058624,6.4949,153.55,153.54,6.5129]
[1727792059441,16.4194,153.56,153.54,6.5129]
[1727792059836,1.30082158,153.55,153.51,6.5139]
[1727792060041,1.30082158,153.55,153.5,6.5145]
[1727792060347,1.30082158,153.55,153.46,16.2908]
[1727792060348,6.5142,153.51,153.46,16.2908]
[1727792060650,1.30082158,153.55,153.46,16.2908]
[1727792060848,6.5142,153.51,153.46,16.2908]
[1727792061036,6.5151,153.49,153.43,22.811]
[1727792061235,15.7981,153.47,153.43,16.2938]
[1727792062037,17.09892158,153.47,153.42,6.518]
[1727792062244,17.09892158,153.47,153.4,16.297]
[1727792062245,15.7981,153.47,153.43,6.5172]
[1727792062553,15.7981,153.47,153.44,6.517]
[1727792062752,15.7981,153.47,153.42,22.812]
[1727792063055,23.61502158,153.47,153.42,16.2944]
[1727792063450,17.09892158,153.47,153.42,22.8122]
[1727792063635,15.7981,153.47,153.43,7.82071335]
[1727792063832,15.7981,153.47,153.44,6.5171]
[1727792064460,15.7981,153.47,153.44,16.2921]
[1727792065057,17.09892158,153.47,153.42,6.518]
[1727792065556,23.61482158,153.47,153.42,6.518]
[1727792065936,22.314,153.47,153.42,6.518]
[1727792066740,15.7981,153.47,153.43,1.30330391]
[1727792066953,15.7981,153.47,153.46,6.5163]
[1727792067263,15.7981,153.47,153.44,6.5171]
[1727792067549,15.7981,153.47,153.43,16.2932]
[1727792067550,15.7981,153.47,153.43,22.8107]
[1727792067759,17.09892158,153.47,153.43,16.2932]
[1727792067961,23.61482158,153.47,153.43,16.2932]
[1727792068139,17.09892158,153.47,153.43,22.8108]
[1727792068339,17.09892158,153.47,153.43,16.2932]
[1727792068541,22.314,153.47,153.43,16.2932]
[1727792069040,22.314,153.47,153.43,22.8108]
[1727792069244,15.7981,153.47,153.43,22.8108]
[1727792069541,17.09892158,153.47,153.43,22.8108]
[1727792070262,23.61492158,153.47,153.43,16.2932]
[1727792070463,23.61492158,153.47,153.38,23.776884]
[1727792070464,6.5173,153.44,153.4,16.2966]
[1727792070759,22.8296,153.5,153.43,20.0]
[1727792070760,1.30082158,153.49,153.43,20.0]
[1727792070948,7.84322158,153.5,153.48,16.2882]
[1727792071147,6.5424,153.5,153.48,16.2882]
[1727792071347,14.35792158,153.5,153.45,22.8083]
[1727792071551,14.35792158,153.5,153.43,26.5172]
[1727792071552,7.84322158,153.5,153.43,26.5172]
[1727792071743,6.5424,153.5,153.44,1.30300618]
[1727792072142,6.5424,153.5,153.45,23.776884]
[1727792072338,6.5424,153.5,153.46,1.30300855]
[1727792072837,6.5424,153.5,153.44,23.776884]
[1727792072838,6.5151,153.49,153.44,23.776884]
[1727792073641,6.5156,153.48,153.44,23.776884]
[1727792074053,6.5151,153.49,153.44,23.776884]
[1727792074234,6.5151,153.49,153.46,30.0]
[1727792074438,6.5151,153.49,153.47,1.30301109]
[1727792075058,6.5159,153.47,153.46,30.0]
[1727792075345,7.84322158,153.5,153.35,85.70512979]
[1727792075346,6.5172,153.44,153.39,6.5193]
[1727792075548,16.2897,153.48,153.38,16.2991]
[1727792075857,1.30082158,153.47,153.4,30.0]
[1727792076249,6.5184,153.41,153.36,6.5205]
[1727792076761,6.5184,153.41,153.37,30.0]
[1727792077148,1.30082158,153.48,153.4,16.297]
[1727792077462,6.5163,153.47,153.41,30.295284]
[1727792077635,21.30082158,153.49,153.41,23.776884]
[1727792077839,1.30082158,153.48,153.41,23.776884]
[1727792078055,6.516,153.47,153.41,23.776884]
[1727792078264,7.81622158,153.49,153.43,30.294484]
[1727792078468,7.84322158,153.5,153.44,7.82022869]
[1727792078761,6.5424,153.5,153.44,7.82022869]
[1727792079362,6.5424,153.5,153.44,37.82022869]
[1727792079660,6.5154,153.49,153.44,37.82022869]
[1727792079869,13.0571,153.5,153.45,30.293484]
[1727792080042,13.0571,153.5,153.46,1.30295067]
[1727792080465,13.0571,153.5,153.46,31.30295067]
[1727792081462,6.5142,153.51,153.47,30.292684]
[1727792081648,6.5142,153.51,153.47,60.292684]
[1727792081971,6.5147,153.5,153.47,30.0]
[1727792082270,6.5147,153.5,153.48,1.30291613]
[1727792082440,6.515,153.49,153.47,30.0]
[1727792082846,6.515,153.49,153.48,1.3029476]
[1727792083257,1.30082158,153.53,153.48,1.30295142]
[1727792083438,6.5147,153.5,153.48,1.30295142]
[1727792083641,6.5147,153.5,153.48,31.30295142]
[1727792083841,6.5147,153.5,153.48,30.0]
[1727792084271,6.515,153.49,153.48,30.0]
[1727792085252,6.5172,153.44,153.42,30.0]
[1727792085656,6.5172,153.44,153.38,16.2989]
[1727792085868,1.30082158,153.48,153.35,22.8228]
[1727792085869,6.5193,153.39,153.35,22.8228]
[1727792086061,16.2925,153.45,153.35,22.8228]
[1727792086062,6.5185,153.41,153.37,6.5201]
[1727792086464,6.5185,153.41,153.38,1.30361894]
[1727792086750,6.5185,153.41,153.36,6.5205]
[1727792086945,6.5179,153.43,153.38,6.5194]
[1727792087153,23.43832158,153.47,153.39,17.60120683]
[1727792087478,22.1375,153.47,153.39,17.60120683]
[1727792087660,6.5168,153.45,153.4,6.5187]
[1727792087971,6.5168,153.45,153.41,1.30336245]
[1727792088270,6.5168,153.45,153.41,23.776884]
[1727792088950,6.5168,153.45,153.42,1.30330522]
[1727792089768,6.5168,153.45,153.41,30.295284]
[1727792090570,22.1375,153.47,153.42,7.82121514]
[1727792090571,28.6538,153.47,153.42,7.82121514]
[1727792091555,28.6538,153.47,153.42,6.5179]
[1727792091759,6.5164,153.46,153.42,6.5179]
[1727792092666,6.5164,153.46,153.42,36.5179]
[1727792093084,6.5164,153.46,153.42,30.0]
[1727792093776,6.5164,153.46,153.41,46.590784]
[1727792093980,6.5168,153.45,153.41,46.590784]
[1727792094354,6.5154,153.49,153.44,6.5171]
[1727792094549,6.5154,153.49,153.45,1.30305951]
[1727792094766,7.74912158,153.51,153.45,1.30305951]
[1727792095049,6.5147,153.5,153.45,6.5164]
[1727792095273,6.5147,153.5,153.46,23.776884]
[1727792095572,6.5147,153.5,153.47,1.30293124]
[1727792095757,6.5147,153.5,153.46,23.776884]
[1727792095961,6.4483,153.51,153.46,23.776884]
[1727792096159,6.4483,153.51,153.44,43.776884]
[1727792096160,24.03482158,153.51,153.44,43.776884]
[1727792096360,24.03482158,153.51,153.44,50.293984]
[1727792096658,12.9626,153.51,153.47,30.292784]
[1727792097162,12.9626,153.51,153.49,6.5148]
[1727792097163,6.4483,153.51,153.49,6.5148]
[1727792097461,15.5911,153.52,153.48,1.3028115]
[1727792097462,15.5911,153.52,153.5,1.30277233]
[1727792097664,15.5911,153.52,153.48,6.5154]
[1727792098068,22.105,153.52,153.48,6.5154]
[1727792098251,15.5911,153.52,153.47,40.066184]
[1727792098453,6.5167,153.45,153.41,26.5183]
[1727792098657,1.30082158,153.51,153.44,23.776884]
[1727792098658,6.5162,153.47,153.44,23.776884]
[1727792098860,6.5164,153.46,153.44,23.776884]
[1727792099256,6.5168,153.45,153.41,22.8138]
[1727792099473,6.5164,153.46,153.42,1.30322401]
[1727792099671,6.5164,153.46,153.41,22.8138]
[1727792099876,6.5164,153.46,153.42,21.30325458]
[1727792100376,15.364,153.45,153.32,17.4489491]
[1727792100587,15.364,153.45,153.36,6.5205]
[1727792100588,31.6564,153.45,153.36,6.5205]
[1727792100756,6.5189,153.4,153.36,6.5205]
[1727792100961,31.6564,153.45,153.34,16.3027]
[1727792101159,6.5189,153.4,153.35,6.5207]
[1727792101476,31.6564,153.45,153.32,0.8371491]
[1727792101477,6.5202,153.37,153.32,0.8371491]
[1727792101786,6.5193,153.4,153.33,1.30394874]
[1727792101959,6.5186,153.41,153.34,16.3035]
[1727792102159,1.30082158,153.42,153.34,16.3035]
[1727792102458,6.5194,153.39,153.35,1.30376693]
[1727792103182,1.30082158,153.42,153.35,7.82466693]
[1727792103382,6.5185,153.41,153.35,7.82466693]
[1727792103677,6.5185,153.41,153.36,23.776884]
[1727792103853,6.5185,153.41,153.37,1.30376919]
[1727792104483,6.5179,153.43,153.38,30.296284]
[1727792104682,15.364,153.45,153.42,23.776884]
[1727792104886,6.3255,153.46,153.42,23.776884]
[1727792104887,6.3255,153.46,153.43,1.30330669]
[1727792105177,15.7288,153.49,153.43,1.30330669]
[1727792105178,15.7288,153.49,153.44,23.776884]
[1727792105376,15.7288,153.49,153.43,1.30330669]
[1727792105377,15.7288,153.49,153.45,1.30301722]
[1727792105586,15.7288,153.49,153.44,23.776884]
[1727792105587,22.244,153.49,153.44,23.776884]
[1727792105881,1.30082158,153.48,153.4,22.8158]
[1727792106059,6.5171,153.45,153.37,16.3001]
[1727792106264,6.5163,153.47,153.4,23.776884]
[1727792106459,6.5163,153.47,153.34,46.90315605]
[1727792106460,6.5164,153.46,153.42,23.776884]
[1727792106663,6.5168,153.45,153.39,16.2975]
[1727792106978,1.30082158,153.48,153.41,6.5181]
[1727792107171,6.5172,153.44,153.4,23.776884]
[1727792107480,15.7288,153.49,153.36,16.3013]
[1727792107481,6.5189,153.4,153.36,16.3013]
[1727792107683,1.30082158,153.43,153.32,0.8371491]
[1727792107684,1.30082158,153.43,153.33,16.3043]
[1727792107869,6.5197,153.38,153.34,30.0]
[1727792108285,6.5201,153.37,153.34,30.0]
[1727792108488,13.0322,153.38,153.33,22.8261]
[1727792108777,6.5125,153.38,153.34,7.82526909]
[1727792108960,6.5125,153.38,153.33,16.3043]
[1727792109155,13.0322,153.38,153.33,22.8261]
[1727792109384,15.1111,153.41,153.39,6.5192]
[1727792109690,15.1111,153.41,153.38,6.5196]
[1727792109890,15.1111,153.41,153.39,1.30367142]
[1727792110384,6.1266,153.43,153.4,6.5187]
[1727792110561,6.1266,153.43,153.41,1.30349309]
[1727792110763,15.2097,153.45,153.41,1.30349309]
[1727792110984,15.2097,153.45,153.39,16.2973]
[1727792110985,15.2097,153.45,153.4,23.776884]
[1727792111185,15.2097,153.45,153.35,20.0]
[1727792111186,1.30082158,153.44,153.35,20.0]
[1727792111365,1.30082158,153.44,153.36,23.776884]
[1727792111569,21.7265,153.45,153.41,6.5184]
[1727792111778,21.7265,153.45,153.42,1.30346674]
[1727792112187,15.2097,153.45,153.42,1.30346674]
[1727792112385,6.1964,153.47,153.43,23.776884]
[1727792112589,15.8453,153.49,153.45,23.776884]
[1727792112896,6.5151,153.49,153.45,40.068584]
[1727792113278,6.3231,153.51,153.48,6.5153]
[1727792113477,6.3231,153.51,153.49,1.30277928]
[1727792113784,6.5138,153.52,153.48,16.2884]
[1727792114183,6.5138,153.52,153.42,32.5887]
[1727792114375,6.5142,153.51,153.44,16.292]
[1727792114572,22.359,153.53,153.46,23.776884]
[1727792114891,15.8453,153.53,153.5,23.776884]
[1727792115094,15.8453,153.53,153.51,1.30264476]
[1727792115394,15.8453,153.53,153.49,23.776884]
[1727792115568,15.8453,153.53,153.5,23.776884]
[1727792115769,6.3048,153.55,153.5,40.063184]
[1727792116069,6.0356,153.59,153.52,23.776884]
[1727792116265,6.0356,153.59,153.53,7.81529369]
[1727792116469,6.0356,153.59,153.53,6.513]
[1727792116470,12.5468,153.59,153.53,6.513]
[1727792116666,12.5468,153.59,153.54,7.81521443]
[1727792116877,12.5468,153.59,153.54,6.5129]
[1727792117090,6.0356,153.59,153.55,7.81477256]
[1727792117267,6.5113,153.58,153.54,23.776884]
[1727792117472,12.5464,153.59,153.54,23.776884]
[1727792118281,6.0356,153.59,153.54,23.776884]
[1727792118489,6.5116,153.57,153.51,6.5141]
[1727792118670,1.30082158,153.58,153.51,23.776884]
[1727792118875,6.5138,153.52,153.48,20.0]
[1727792119102,1.30082158,153.57,153.48,26.5153]
[1727792119103,6.5134,153.53,153.48,26.5153]
[1727792119395,6.5134,153.53,153.48,26.5154]
[1727792119803,6.5134,153.53,153.47,6.5158]
[1727792120205,6.5139,153.52,153.47,6.5158]
[1727792120495,21.30082158,153.57,153.43,16.2938]
[1727792120496,6.1275,153.5,153.43,16.2938]
[1727792120794,6.1275,153.5,153.44,1.30300817]
[1727792120997,6.1275,153.5,153.47,6.5158]
[1727792121186,15.4384,153.53,153.46,16.2908]
[1727792121187,21.9518,153.53,153.48,7.81829515]
[1727792121500,15.4384,153.53,153.5,6.5144]
[1727792121676,15.4384,153.53,153.51,1.302678]
[1727792122071,15.4384,153.53,153.49,23.776884]
[1727792122379,12.6405,153.54,153.49,30.291884]
[1727792122575,6.5134,153.53,153.49,23.776884]
[1727792123395,6.1275,153.54,153.49,23.776884]
[1727792123602,6.5133,153.53,153.49,23.776884]
[1727792123975,6.1275,153.54,153.5,1.30268074]
[1727792124300,12.6405,153.54,153.49,30.291884]
[1727792124496,6.5134,153.53,153.49,23.776884]
[1727792124697,6.1275,153.54,153.49,23.776884]
[1727792124895,6.5152,153.49,153.45,22.8084]
[1727792125090,6.5136,153.53,153.48,6.5153]
[1727792125492,6.1275,153.54,153.5,6.5145]
[1727792125797,6.5121,153.56,153.51,7.81661065]
[1727792126002,16.3626,153.57,153.51,1.30261065]
[1727792126175,6.5126,153.55,153.51,1.30261065]
[1727792126593,6.5129,153.54,153.51,23.776884]
[1727792126800,17.66342158,153.57,153.51,23.776884]
[1727792126990,6.5124,153.56,153.51,6.5141]
[1727792127173,6.5125,153.55,153.51,6.5141]
[1727792127379,17.66342158,153.57,153.5,23.776884]
[1727792127894,17.66342158,153.57,153.5,30.291484]
[1727792127895,6.5125,153.55,153.5,30.291484]
[1727792128400,1.30082158,153.54,153.5,23.776884]
[1727792128599,6.5145,153.51,153.46,22.8063]
[1727792128921,6.5147,153.5,153.45,6.5167]
[1727792129404,6.5159,153.47,153.43,16.2937]
[1727792129584,17.58642158,153.51,153.4,46.2968]
[1727792129784,6.5173,153.44,153.4,52.8157]
[1727792130313,16.2611,153.5,153.43,6.5174]
[1727792130603,22.7761,153.5,153.44,1.30319105]
[1727792130898,22.7758,153.5,153.45,7.81935889]
[1727792131104,16.2611,153.5,153.46,6.5162]
[1727792131605,16.2611,153.5,153.43,16.2934]
[1727792131606,6.5074,153.52,153.48,23.776884]
[1727792131896,6.5074,153.52,153.49,7.81775952]
[1727792132597,15.0307,153.54,153.5,6.5143]
[1727792132801,21.5436,153.54,153.51,1.30268904]
[1727792133112,6.5134,153.53,153.49,16.2869]
[1727792133300,15.0307,153.54,153.49,24.10456678]
[1727792133706,21.5438,153.54,153.49,22.8019]
[1727792134193,15.0307,153.54,153.49,16.2869]
[1727792134498,6.2644,153.56,153.48,23.776884]
[1727792134499,6.2644,153.56,153.52,6.5137]
[1727792134700,6.2644,153.56,153.53,1.30242378]
[1727792134879,6.2644,153.56,153.53,7.81572378]
[1727792135080,6.2644,153.56,153.54,6.5125]
[1727792135280,6.5107,153.6,153.55,7.81483224]
[1727792135281,12.643,153.6,153.55,7.81483224]
[1727792135583,7.92282158,153.64,153.56,23.776884]
[1727792135792,6.622,153.64,153.59,22.7868]
[1727792136000,13.131,153.64,153.6,1.30182996]
[1727792136202,21.7903,153.66,153.61,30.286784]
[1727792136383,12.8555,153.68,153.63,6.5091]
[1727792136708,6.5079,153.66,153.61,46.560784]
[1727792136906,6.5079,153.66,153.61,40.050884]
[1727792137098,12.8558,153.68,153.62,1.30166294]
[1727792137299,6.5041,153.75,153.69,6.5065]
[1727792137793,7.64932158,153.77,153.69,6.5065]
[1727792137980,6.5044,153.74,153.69,23.776884]
[1727792138183,6.5049,153.73,153.69,23.776884]
[1727792138706,6.5054,153.72,153.66,6.5074]
[1727792138912,16.2592,153.76,153.64,22.7794]
[1727792139095,1.30082158,153.75,153.65,23.776884]
[1727792139289,6.5067,153.69,153.65,23.776884]
[1727792139507,6.5071,153.68,153.63,23.776884]
[1727792139689,1.30082158,153.72,153.64,1.30143847]
[1727792139891,6.5066,153.69,153.63,46.558684]
[1727792140086,1.30082158,153.72,153.63,23.776884]
[1727792140286,21.30082158,153.72,153.63,23.776884]
[1727792140586,6.5074,153.67,153.62,23.776884]
[1727792140798,21.30082158,153.72,153.62,23.776884]
[1727792140984,16.2653,153.71,153.61,23.776884]
[1727792141178,1.30082158,153.7,153.61,23.776884]
[1727792141417,6.5078,153.67,153.61,23.776884]
[1727792141597,6.5069,153.69,153.63,30.285884]
[1727792141800,1.30082158,153.68,153.63,23.776884]
[1727792141985,1.30082158,153.7,153.64,1.30152885]
[1727792142705,6.5069,153.69,153.64,1.30152885]
[1727792143011,6.507,153.68,153.63,30.285884]
[1727792144695,16.2611,153.75,153.64,21.3013855]
[1727792145000,6.5049,153.73,153.68,6.5069]
[1727792145190,6.5049,153.73,153.69,1.30102169]
[1727792145383,6.5053,153.72,153.67,6.5073]
[1727792145596,1.30082158,153.75,153.67,23.776884]
[1727792145892,6.5057,153.71,153.68,1.30111787]
[1727792146501,1.30082158,153.75,153.68,1.30111787]
[1727792146687,6.5054,153.72,153.68,1.30111787]
[1727792147588,6.5071,153.68,153.63,26.5091]
[1727792148398,6.5074,153.67,153.63,26.5091]
[1727792148714,1.30082158,153.71,153.63,20.0]
[1727792148891,1.30082158,153.71,153.64,23.776884]
[1727792148892,6.5075,153.67,153.64,23.776884]
[1727792149494,6.5075,153.67,153.63,20.0]
[1727792149711,6.5067,153.69,153.63,20.0]
[1727792149927,6.5086,153.65,153.63,20.0]
[1727792150089,6.5079,153.66,153.62,26.5095]
[1727792150296,6.5079,153.66,153.61,6.5096]
[1727792150592,6.5079,153.66,153.62,20.0]
[1727792150789,6.5075,153.67,153.63,23.776884]
[1727792151210,1.30082158,153.66,153.59,16.2769]
[1727792151429,1.30082158,153.66,153.54,6.3292]
[1727792151616,17.57142158,153.66,153.55,46.2807]
[1727792151819,6.5099,153.62,153.57,6.5113]
[1727792152391,17.57142158,153.66,153.56,6.512]
[1727792152596,17.57142158,153.66,153.55,16.2807]
[1727792152597,6.5115,153.58,153.53,6.513]
[1727792152814,16.2725,153.64,153.52,32.947]
[1727792152815,6.5107,153.6,153.54,6.5128]
[1727792153705,1.30082158,153.63,153.54,6.5128]
[1727792153901,6.5103,153.61,153.56,6.512]
[1727792154102,6.5103,153.61,153.57,1.30204317]
[1727792154316,6.5096,153.62,153.58,6.5112]
[1727792154605,6.5087,153.64,153.59,7.81257103]
[1727792154810,17.56952158,153.67,153.58,16.2781]
[1727792155013,6.5091,153.63,153.58,22.7893]
[1727792155213,6.5091,153.63,153.59,23.776884]
[1727792155614,6.5096,153.62,153.59,23.776884]
[1727792156011,7.80932158,153.65,153.59,30.287284]
[1727792156208,6.5087,153.64,153.59,23.776884]
[1727792156402,1.30082158,153.67,153.61,23.776884]
[1727792156623,6.5087,153.65,153.61,23.776884]
[1727792156801,6.5087,153.64,153.61,23.776884]
[1727792157199,1.30082158,153.67,153.61,23.776884]
[1727792157398,6.5083,153.65,153.61,23.776884]
[1727792157722,6.5077,153.67,153.63,23.776884]
[1727792158718,6.5086,153.65,153.61,23.776884]
[1727792160201,6.5087,153.64,153.59,6.5108]
[1727792160421,6.5095,153.63,153.6,23.776884]
[1727792160718,6.5097,153.62,153.58,23.776884]
[1727792160918,16.2719,153.64,153.53,16.2824]
[1727792161113,6.5104,153.6,153.54,1.30213252]
[1727792161310,1.30082158,153.63,153.55,6.5125]
[1727792161521,6.5108,153.59,153.55,6.5125]
[1727792161694,6.5108,153.59,153.54,6.5129]
[1727792161898,6.5096,153.62,153.57,6.5116]
[1727792162101,6.5096,153.62,153.58,1.30200364]
[1727792162307,1.30082158,153.66,153.6,23.776884]
[1727792162631,32.534,153.69,153.63,6.5089]
[1727792162632,6.507,153.69,153.63,6.5089]
[1727792162802,6.507,153.68,153.64,7.81005748]
[1727792162998,6.507,153.68,153.64,23.776884]
[1727792163310,6.5078,153.66,153.64,23.776884]
[1727792163497,6.5078,153.66,153.63,23.776884]
[1727792163704,6.5075,153.67,153.63,23.776884]
[1727792164132,1.30082158,153.69,153.64,6.5086]
[1727792164422,6.0926,153.72,153.65,1.30145614]
[1727792164599,1.30082158,153.72,153.66,23.776884]
[1727792164805,6.5048,153.74,153.69,6.5065]
[1727792164999,6.5048,153.74,153.7,1.3010158]
[1727792165204,1.30082158,153.76,153.7,1.3010158]
[1727792165205,6.5053,153.72,153.7,1.3010158]
[1727792165406,6.5053,153.73,153.69,1.30104553]
[1727792165615,12.8739,153.74,153.69,7.80744553]
[1727792165926,12.8739,153.74,153.7,23.776884]
[1727792166622,6.5049,153.73,153.7,23.776884]
[1727792166804,6.5037,153.76,153.71,1.30094635]
[1727792167006,6.504,153.75,153.71,7.80654635]
[1727792167208,6.5036,153.76,153.72,23.776884]
[1727792167416,6.5049,153.73,153.68,22.7737]
[1727792167621,6.5048,153.74,153.69,30.283384]
[1727792167816,6.5048,153.74,153.7,1.30091025]
[1727792168016,6.5055,153.72,153.69,23.776884]
[1727792168322,6.5049,153.73,153.7,1.30099421]
[1727792168717,6.5044,153.75,153.7,7.80709421]
[1727792168912,6.5041,153.75,153.7,7.80709421]
[1727792169114,6.1601,153.78,153.72,16.2625]
[1727792169320,6.5028,153.78,153.73,7.80547015]
[1727792169518,6.5032,153.77,153.72,22.7678]
[1727792169825,6.5039,153.76,153.73,25.07754574]
[1727792170523,6.5039,153.76,153.72,6.5053]
[1727792170524,6.5039,153.76,153.72,23.776884]
[1727792170729,6.5041,153.75,153.7,23.776884]
[1727792170914,6.5041,153.75,153.71,1.30079648]
[1727792171109,1.30082158,153.78,153.72,23.776884]
[1727792171310,6.5032,153.77,153.73,1.30069709]
[1727792172123,6.5016,153.81,153.76,6.5032]
[1727792172427,1.30082158,153.89,153.8,16.2542]
[1727792172728,6.5003,153.84,153.79,6.5023]
[1727792173023,6.5013,153.82,153.78,23.776884]
[1727792173222,2.21383068,153.86,153.74,40.037984]
[1727792173427,22.6549,153.85,153.74,16.2611]
[1727792173632,6.5029,153.78,153.74,16.2611]
[1727792173954,16.2534,153.82,153.71,16.264]
[1727792174233,16.2534,153.82,153.72,7.80583988]
[1727792174234,1.30082158,153.81,153.72,7.80583988]
[1727792174520,6.5041,153.75,153.71,16.264]
[1727792174730,6.5046,153.74,153.69,6.5065]
[1727792175020,6.505,153.73,153.69,6.5065]
[1727792175319,1.30082158,153.77,153.7,1.30089732]
[1727792175525,6.5045,153.74,153.7,1.30089732]
[1727792175707,6.5045,153.74,153.69,6.5065]
[1727792175920,6.5045,153.74,153.71,1.30083986]
[1727792176105,6.505,153.73,153.68,22.7741]
[1727792176406,6.5052,153.73,153.69,1.30094917]
[1727792177019,1.30082158,153.75,153.69,1.30094917]
[1727792177200,6.5053,153.72,153.67,7.80814234]
[1727792177403,6.5057,153.71,153.67,1.30104234]
[1727792177629,6.5053,153.72,153.67,7.80834234]
[1727792178000,1.30082158,153.75,153.67,1.30104234]
[1727792178228,21.9564,153.76,153.68,16.2666]
[1727792178431,21.9564,153.76,153.69,1.30086407]
[1727792178613,16.3856,153.8,153.73,23.776884]
[1727792178808,6.5035,153.77,153.73,23.776884]
[1727792179134,1.30082158,153.76,153.71,23.776884]
[1727792179331,1.30082158,153.79,153.71,23.776884]
[1727792179534,1.30082158,153.79,153.7,23.776884]
[1727792179826,6.5056,153.72,153.68,23.776884]
[1727792180027,21.30082158,153.77,153.64,16.2717]
[1727792180323,21.30082158,153.77,153.61,22.7841]
[1727792180324,6.5079,153.66,153.61,22.7841]
[1727792180731,1.30082158,153.71,153.61,16.2746]
[1727792181533,1.30082158,153.71,153.62,1.30154052]
[1727792181704,1.30082158,153.71,153.65,6.5082]
[1727792181903,6.507,153.68,153.64,16.2717]